fUSD/lending_fUSD_20250208
["ID","MTS","AMOUNT","RATE_DAILY","PERIOD"]
[352320204,1739040663200,-1179.89,0.00010821,2]
[352320205,1739040663210,-462.08594357,0.00010821,2]
[352320206,1739040663220,-500.0,0.00010821,2]
[352320207,1739040663230,-500.0,0.00010821,2]
[352320208,1739040663240,-500.0,0.00010821,2]
[352320209,1739040663249,-500.0,0.00010821,2]
[352320210,1739040663259,-942.33,0.00010821,2]
[352320211,1739040663269,-500.0,0.00010821,2]
[352320212,1739040663278,-500.0,0.00010821,2]
[352320213,1739040663287,-1272.0,0.00010826,2]
[352320214,1739040663297,-2023.0,0.00010826,2]
[352320215,1739040663306,-568.0,0.00010826,2]
[352320216,1739040663316,-638.0,0.00010826,2]
[352320217,1739040663325,-150.0,0.00010826,2]
[352320218,1739040663334,-379.203,0.00010826,2]
[352320219,1739040663344,-783.0,0.00010826,2]
[352320220,1739040663354,-2953.0,0.00010826,2]
[352320221,1739040663365,-1264.0,0.00010826,2]
[352320222,1739040663375,-907.0,0.00010826,2]
[352320223,1739040663384,-539.0,0.00010826,2]
[352320224,1739040663394,-4024.0,0.00010826,2]
[352320225,1739040663403,-248.752,0.00010826,2]
[352320226,1739040663413,-3911.0,0.00010826,2]
[352320227,1739040663423,-150.0,0.00010826,2]
[352320228,1739040663432,-1108.0,0.00010826,2]
[352320229,1739040663442,-150.0,0.00010826,2]
[352320230,1739040663452,-389.17940693,0.0001084,2]
[352320231,1739040663461,-28808.0,0.00010849,2]
[352320232,1739040663471,-389.17940693,0.0001086,2]
[352320233,1739040663480,-500.0,0.00010878,2]
[352320234,1739040663490,-500.0,0.00010878,2]
[352320235,1739040663499,-500.0,0.00010878,2]
[352320236,1739040663509,-274.52973244,0.00010879,2]
[352320237,1739040663519,-247.77073186,0.00010879,2]
[352320238,1739040663528,-200.0,0.00010879,2]
[352320239,1739040663537,-151.0,0.00010879,2]
[352320240,1739040663547,-500.0,0.00010879,2]
[352320241,1739040663561,-500.0,0.00010879,2]
[352320242,1739040663570,-845.5,0.00010879,2]
[352320243,1739040663579,-500.0,0.00010879,2]
[352320244,1739040663588,-151.0,0.00010879,2]
[352320245,1739040663599,-719.56,0.00010879,2]
[352320246,1739040663608,-1027.25,0.00010879,2]
[352320247,1739040663617,-828.87,0.00010879,2]
[352320248,1739040663627,-543.99,0.00010879,2]
[352320249,1739040663637,-500.0,0.00010879,2]
[352320250,1739040663646,-500.0,0.00010879,2]
[352320251,1739040663656,-500.0,0.00010879,2]
[352320252,1739040663666,-500.0,0.00010879,2]
[352320253,1739040663676,-500.0,0.00010879,2]
[352320254,1739040663685,-500.0,0.00010879,2]
[352320255,1739040663695,-500.0,0.00010879,2]
[352320256,1739040663704,-808.55,0.00010879,2]
[352320257,1739040663713,-500.0,0.00010879,2]
[352320258,1739040663723,-924.9,0.00010879,2]
[352320259,1739040663732,-500.0,0.00010879,2]
[352320260,1739040663742,-966.54,0.00010879,2]
[352320261,1739040663751,-500.0,0.00010879,2]
[352320262,1739040663761,-500.0,0.00010879,2]
[352320263,1739040663770,-500.0,0.00010879,2]
[352320264,1739040663779,-800.09,0.00010879,2]
[352320265,1739040663789,-500.0,0.00010879,2]
[352320266,1739040663798,-500.0,0.00010879,2]
[352320267,1739040663807,-500.0,0.00010879,2]
[352320268,1739040663817,-500.0,0.00010879,2]
[352320269,1739040663826,-500.0,0.00010879,2]
[352320270,1739040663836,-500.0,0.00010879,2]
[352320271,1739040663846,-500.0,0.00010879,2]
[352320272,1739040663856,-500.0,0.00010879,2]
[352320273,1739040663865,-500.0,0.00010879,2]
[352320274,1739040663876,-500.0,0.00010879,2]
[352320275,1739040663887,-500.0,0.00010879,2]
[352320276,1739040663897,-500.0,0.00010879,2]
[352320277,1739040663907,-500.0,0.00010879,2]
[352320278,1739040663918,-500.0,0.00010879,2]
[352320279,1739040663927,-389.17940693,0.0001088,2]
[352320280,1739040663937,-151.0,0.0001088,2]
[352320281,1739040663947,-151.0,0.0001088,2]
[352320282,1739040663957,-544.46545732,0.00010885,2]
[352320283,1739040663967,-12217.54756448,0.00010885,2]
[352320284,1739040663976,-2365.73445819,0.00010889,2]
[352320285,1739040663986,-7129.61105968,0.00010892,2]
[352320286,1739040664001,-119239.62066038,0.00010892,2]
[352320287,1739040664012,-966.46980506,0.00010892,2]
[352320288,1739040664023,-3284.0,0.00010892,2]
[352320289,1739040664035,-24104.6103854,0.00010892,2]
[352320290,1739040664054,-848.25026619,0.00010892,2]
[352320291,1739040664067,-841.89105,0.00010892,2]
[352320292,1739040664078,-380.43,0.00010892,2]
[352320293,1739040664089,-6039.48733431,0.00010892,2]
[352320294,1739040664101,-2068.63438604,0.00010892,2]
[352320295,1739040664112,-2395.98,0.00010892,2]
[352320296,1739040664123,-16133.84011071,0.00010892,2]
[352320297,1739040664134,-482.50202,0.00010892,2]
[352320298,1739040664152,-3009.39221792,0.00010892,2]
[352320299,1739040664164,-505.64321959,0.00010892,2]
[352320300,1739040664177,-537.640002,0.00010892,2]
[352320301,1739040664189,-582.983,0.00010892,2]
[352320302,1739040664201,-738.37599718,0.00010892,2]
[352320303,1739040664212,-1508.70183977,0.00010892,2]
[352320304,1739040664223,-512.27802841,0.00010892,2]
[352320305,1739040664234,-19063.35960329,0.00010892,2]
[352320306,1739040664245,-3443.6700847,0.00010892,2]
[352320307,1739040664256,-304.89860006,0.00010892,2]
[352320308,1739040664477,-1257.5,0.00010135,2]
[352320309,1739040664486,-1257.5,0.00010272,2]
[352320310,1739040664496,-1257.5,0.00010409,2]
[352320311,1739040664506,-1257.5,0.00010546,2]
[352320312,1739040664516,-7192.7842109,0.00010892,2]
[352320313,1739040664525,-9535.66890138,0.00010892,2]
[352320314,1739040664534,-126626.45332888,0.00010892,2]
[352320315,1739040664546,-2720.81109365,0.00010892,2]
[352320316,1739040664561,-967.70000095,0.00010892,2]
[352320317,1739040664573,-91000.08945811,0.00010892,2]
[352320318,1739040664582,-2000.0,0.000109,2]
[352320319,1739040664592,-389.17940693,0.000109,2]
[352320320,1739040664602,-352.9639737,0.000109,2]
[352320321,1739040664613,-154.28063664,0.000109,2]
[352320322,1739040664622,-500.0,0.00010942,2]
[352320323,1739040664632,-500.0,0.00010942,2]
[352320324,1739040664641,-150.0,0.00010946,2]
[352320325,1739040664651,-150.0,0.00010946,2]
[352320326,1739040664661,-151.47327654,0.00010946,2]
[352320327,1739040664672,-980.0,0.00010946,2]
[352320328,1739040664681,-500.0,0.00010957,2]
[352320329,1739040664691,-500.0,0.00010957,2]
[352320330,1739040664700,-793.09,0.00010957,2]
[352320331,1739040664710,-500.0,0.00010957,2]
[352320332,1739040664719,-500.0,0.00010957,2]
[352320333,1739040664728,-872.27,0.00010957,2]
[352320334,1739040664738,-1066.48,0.00010957,2]
[352320335,1739040664747,-890.85,0.00010957,2]
[352320336,1739040664756,-500.0,0.00010957,2]
[352320337,1739040664766,-500.0,0.00010957,2]
[352320338,1739040664775,-500.0,0.00010957,2]
[352320339,1739040664784,-500.0,0.00010957,2]
[352320340,1739040664794,-500.0,0.00010957,2]
[352320341,1739040664803,-500.0,0.00010957,2]
[352320342,1739040664812,-500.0,0.00010957,2]
[352320343,1739040664822,-714.72,0.00010957,2]
[352320344,1739040664831,-500.0,0.00010957,2]
[352320345,1739040664840,-890.34,0.00010957,2]
[352320346,1739040664850,-500.0,0.00010957,2]
[352320347,1739040664860,-500.0,0.00010957,2]
[352320348,1739040664869,-899.55,0.00010957,2]
[352320349,1739040664879,-500.0,0.00010957,2]
[352320350,1739040664888,-1116.403512,0.00010957,2]
[352320351,1739040664898,-895.34,0.00010957,2]
[352320352,1739040664908,-500.0,0.00010957,2]
[352320353,1739040664917,-500.0,0.00010957,2]
[352320354,1739040664926,-511.2222437,0.00010957,2]
[352320355,1739040664936,-1028.215139,0.00010957,2]
[352320356,1739040664945,-500.0,0.00010957,2]
[352320357,1739040664955,-500.0,0.00010957,2]
[352320358,1739040664964,-500.0,0.00010957,2]
[352320359,1739040664973,-592.01,0.00010957,2]
[352320360,1739040664983,-1035.14,0.00010957,2]
[352320361,1739040664992,-876.65,0.00010957,2]
[352320362,1739040665001,-500.0,0.00010957,2]
[352320363,1739040665010,-931.39,0.00010957,2]
[352320364,1739040665019,-500.0,0.00010957,2]
[352320365,1739040665028,-500.0,0.00010957,2]
[352320366,1739040665037,-875.35,0.00010957,2]
[352320367,1739040665047,-869.1,0.00010957,2]
[352320368,1739040665056,-500.0,0.00010957,2]
[352320369,1739040665066,-582.1,0.00010957,2]
[352320370,1739040665075,-500.0,0.00010957,2]
[352320371,1739040665084,-793.14,0.00010957,2]
[352320372,1739040665094,-1074.27,0.00010957,2]
[352320373,1739040665103,-848.7,0.00010957,2]
[352320374,1739040665112,-685.6,0.00010957,2]
[352320375,1739040665122,-500.0,0.00010957,2]
[352320376,1739040665131,-500.0,0.00010957,2]
[352320377,1739040665140,-500.0,0.00010957,2]
[352320378,1739040665150,-500.0,0.00010957,2]
[352320379,1739040665159,-500.0,0.00010957,2]
[352320380,1739040665169,-500.0,0.00010957,2]
[352320381,1739040665179,-372.73777484,0.00010957,2]
[352320382,1739040665188,-337.43184781,0.00010957,2]
[352320383,1739040665198,-500.0,0.00010957,2]
[352320384,1739040665208,-787.81,0.00010957,2]
[352320385,1739040665217,-682.13,0.00010957,2]
[352320386,1739040665226,-500.0,0.00010957,2]
[352320387,1739040665236,-500.0,0.00010957,2]
[352320388,1739040665246,-1272.7,0.00010957,2]
[352320389,1739040665256,-1626.06,0.00010957,2]
[352320390,1739040665265,-500.0,0.00010957,2]
[352320391,1739040665275,-542.65356856,0.00010957,2]
[352320392,1739040665284,-578.22,0.00010957,2]
[352320393,1739040665294,-500.0,0.00010957,2]
[352320394,1739040665303,-1035.7,0.00010957,2]
[352320395,1739040665312,-500.0,0.00010957,2]
[352320396,1739040665321,-1103.82,0.00010957,2]
[352320397,1739040665330,-1509.65,0.00010957,2]
[352320398,1739040665339,-500.0,0.00010957,2]
[352320399,1739040665349,-500.0,0.00010957,2]
[352320400,1739040665358,-813.08,0.00010957,2]
[352320401,1739040665367,-1060.65,0.00010957,2]
[352320402,1739040665377,-629.65,0.00010957,2]
[352320403,1739040665386,-975.76,0.00010957,2]
[352320404,1739040665396,-2030.46,0.00010957,2]
[352320405,1739040665406,-1299.78,0.00010957,2]
[352320406,1739040665415,-500.0,0.00010957,2]
[352320407,1739040665426,-1121.57,0.00010957,2]
[352320408,1739040665435,-956.12,0.00010957,2]
[352320409,1739040665444,-1058.02,0.00010957,2]
[352320410,1739040665454,-872.69,0.00010957,2]
[352320411,1739040665464,-500.0,0.00010957,2]
[352320412,1739040665475,-1626.96,0.00010957,2]
[352320413,1739040665485,-784.0,0.00010957,2]
[352320414,1739040665495,-2570.48,0.00010957,2]
[352320415,1739040665504,-1224.32,0.00010957,2]
[352320416,1739040665514,-500.0,0.00010957,2]
[352320417,1739040665523,-1394.44,0.00010957,2]
[352320418,1739040665532,-1320.72,0.00010957,2]
[352320419,1739040665541,-500.0,0.00010957,2]
[352320420,1739040665552,-1577.09,0.00010957,2]
[352320421,1739040665563,-950.54,0.00010957,2]
[352320422,1739040665572,-500.0,0.00010957,2]
[352320423,1739040665582,-4199.11,0.00010957,2]
[352320424,1739040665591,-855.99,0.00010957,2]
[352320425,1739040665602,-937.51,0.00010957,2]
[352320426,1739040665611,-905.52,0.00010957,2]
[352320427,1739040665621,-292.39232358,0.00010957,2]
[352320428,1739040665632,-1507.74,0.00010957,2]
[352320429,1739040665642,-404.8360993,0.00010957,2]
[352320430,1739040665656,-484.8139007,0.00010957,2]
[352320431,1739040665666,-244.16218524,0.00010957,2]
[352320432,1739040665678,-2294.94781476,0.00010957,2]
[352320433,1739040665687,-500.0,0.00010957,2]
[352320434,1739040665696,-1440.29,0.00010957,2]
[352320435,1739040665705,-500.0,0.00010957,2]
[352320436,1739040665715,-577.99,0.00010957,2]
[352320437,1739040665724,-2091.76,0.00010957,2]
[352320438,1739040665733,-1029.88,0.00010957,2]
[352320439,1739040665742,-1156.42,0.00010957,2]
[352320440,1739040665751,-1705.0,0.00010957,2]
[352320441,1739040665760,-1782.34,0.00010957,2]
[352320442,1739040665769,-1767.73,0.00010957,2]
[352320443,1739040665778,-141.71622548,0.00010957,2]
[352320444,1739040665790,-358.28377452,0.00010957,2]
[352320445,1739040665799,-141.71622548,0.00010957,2]
[352320446,1739040665811,-358.28377452,0.00010957,2]
[352320447,1739040665821,-1128.81,0.00010957,2]
[352320448,1739040665831,-426.43233896,0.00010957,2]
[352320449,1739040665841,-990.75,0.00010957,2]
[352320450,1739040665851,-500.0,0.00010957,2]
[352320451,1739040665861,-1250.13,0.00010957,2]
[352320452,1739040665872,-1568.08,0.00010957,2]
[352320453,1739040665882,-500.0,0.00010957,2]
[352320454,1739040665891,-909.38,0.00010957,2]
[352320455,1739040665901,-631.4,0.00010957,2]
[352320456,1739040665910,-500.0,0.00010957,2]
[352320457,1739040665920,-1218.52,0.00010957,2]
[352320458,1739040665930,-1944.78,0.00010957,2]
[352320459,1739040665939,-500.0,0.00010957,2]
[352320460,1739040665950,-500.0,0.00010957,2]
[352320461,1739040665960,-986.08590412,0.00010957,2]
[352320462,1739040665972,-149.70409588,0.00010957,2]
[352320463,1739040665981,-1784.48,0.00010957,2]
[352320464,1739040665990,-1201.96,0.00010957,2]
[352320465,1739040666000,-1159.47,0.00010957,2]
[352320466,1739040666010,-500.0,0.00010957,2]
[352320467,1739040666020,-2050.98,0.00010957,2]
[352320468,1739040666029,-767.37,0.00010957,2]
[352320469,1739040666039,-1074.59,0.00010957,2]
[352320470,1739040666049,-1889.67146217,0.00010957,2]
[352320471,1739040666061,-67.80853783,0.00010957,2]
[352320472,1739040666071,-1546.44,0.00010957,2]
[352320473,1739040666081,-760.52,0.00010957,2]
[352320474,1739040666090,-1057.92,0.00010957,2]
[352320475,1739040666100,-500.0,0.00010957,2]
[352320476,1739040666110,-1574.93,0.00010957,2]
[352320477,1739040666120,-1020.46,0.00010957,2]
[352320478,1739040666130,-500.0,0.00010957,2]
[352320479,1739040666139,-2809.59985101,0.00010957,2]
[352320480,1739040666152,-199.58014899,0.00010957,2]
[352320481,1739040666161,-500.0,0.00010957,2]
[352320482,1739040666173,-226.14195448,0.00010957,2]
[352320483,1739040666185,-424.77804552,0.00010957,2]
[352320484,1739040666195,-1095.06,0.00010957,2]
[352320485,1739040666205,-280.16195448,0.00010957,2]
[352320486,1739040666217,-989.17804552,0.00010957,2]
[352320487,1739040666227,-2250.02,0.00010957,2]
[352320488,1739040666238,-500.0,0.00010957,2]
[352320489,1739040666248,-653.39,0.00010957,2]
[352320490,1739040666258,-1602.28,0.00010957,2]
[352320491,1739040666267,-1053.71,0.00010957,2]
[352320492,1739040666277,-500.0,0.00010957,2]
[352320493,1739040666286,-3166.67,0.00010957,2]
[352320494,1739040666296,-500.0,0.00010957,2]
[352320495,1739040666306,-585.49,0.00010957,2]
[352320496,1739040666316,-1679.98,0.00010957,2]
[352320497,1739040666326,-904.18,0.00010957,2]
[352320498,1739040666335,-1568.8,0.00010957,2]
[352320499,1739040666344,-500.0,0.00010957,2]
[352320500,1739040666354,-500.0,0.00010957,2]
[352320501,1739040666364,-1400.81,0.00010957,2]
[352320502,1739040666373,-500.0,0.00010957,2]
[352320503,1739040666383,-511.81,0.00010957,2]
[352320504,1739040666394,-500.0,0.00010957,2]
[352320505,1739040666403,-500.0,0.00010957,2]
[352320506,1739040666413,-804.57,0.00010957,2]
[352320507,1739040666425,-697.81,0.00010957,2]
[352320508,1739040666434,-2077.69,0.00010957,2]
[352320509,1739040666444,-1280.25,0.00010957,2]
[352320510,1739040666453,-500.0,0.00010957,2]
[352320511,1739040666463,-1663.58,0.00010957,2]
[352320512,1739040666473,-500.0,0.00010957,2]
[352320513,1739040666482,-500.0,0.00010958,2]
[352320514,1739040666492,-500.0,0.00010958,2]
[352320515,1739040666501,-500.0,0.00010958,2]
[352320516,1739040666511,-500.0,0.00010958,2]
[352320517,1739040666521,-500.0,0.00010958,2]
[352320518,1739040666531,-500.0,0.00010958,2]
[352320519,1739040666540,-500.0,0.00010958,2]
[352320520,1739040666549,-500.0,0.00010958,2]
[352320521,1739040666562,-500.0,0.00010958,2]
[352320522,1739040666571,-612.89109141,0.00010958,2]
[352320523,1739040666581,-500.0,0.00010958,2]
[352320524,1739040666590,-500.0,0.00010958,2]
[352320525,1739040666601,-500.0,0.00010958,2]
[352320526,1739040666610,-500.0,0.00010958,2]
[352320527,1739040666619,-500.0,0.00010958,2]
[352320528,1739040666629,-500.0,0.00010958,2]
[352320529,1739040666639,-500.0,0.00010958,2]
[352320530,1739040666648,-500.0,0.00010958,2]
[352320531,1739040666657,-500.0,0.00010958,2]
[352320532,1739040666667,-500.0,0.00010958,2]
[352320533,1739040666677,-500.0,0.00010958,2]
[352320534,1739040666687,-500.0,0.00010958,2]
[352320535,1739040666866,-500.0,0.00010958,2]
[352320536,1739040666877,-500.0,0.00010958,2]
[352320537,1739040666887,-500.0,0.00010958,2]
[352320538,1739040666896,-500.0,0.00010958,2]
[352320539,1739040666906,-500.0,0.00010958,2]
[352320540,1739040666915,-500.0,0.00010958,2]
[352320541,1739040666925,-500.0,0.00010958,2]
[352320542,1739040666935,-500.0,0.00010958,2]
[352320543,1739040666943,-892.29,0.00010958,2]
[352320544,1739040666953,-500.0,0.00010958,2]
[352320545,1739040666962,-704.67,0.00010958,2]
[352320546,1739040666971,-500.0,0.00010958,2]
[352320547,1739040666980,-632.37,0.00010958,2]
[352320548,1739040666990,-500.0,0.00010958,2]
[352320549,1739040667000,-525.25311126,0.00010958,2]
[352320550,1739040667013,-173.15688874,0.00010958,2]
[352320551,1739040667022,-167.30569497,0.00010958,2]
[352320552,1739040667033,-332.69430503,0.00010958,2]
[352320553,1739040667044,-500.0,0.00010958,2]
[352320554,1739040667053,-500.0,0.00010958,2]
[352320555,1739040667063,-213.78354934,0.00010958,2]
[352320556,1739040667074,-286.21645066,0.00010958,2]
[352320557,1739040667083,-516.51,0.00010958,2]
[352320558,1739040667093,-500.0,0.00010958,2]
[352320559,1739040667102,-500.0,0.00010958,2]
[352320560,1739040667112,-992.45,0.00010958,2]
[352320561,1739040667123,-500.0,0.00010958,2]
[352320562,1739040667132,-500.0,0.00010958,2]
[352320563,1739040667141,-500.0,0.00010958,2]
[352320564,1739040667151,-500.0,0.00010958,2]
[352320565,1739040667163,-480.09354934,0.00010958,2]
[352320566,1739040667177,-321.87645066,0.00010958,2]
[352320567,1739040667187,-500.0,0.00010958,2]
[352320568,1739040667197,-8.84744209,0.00010958,2]
[352320569,1739040667216,-1257.5,0.00010683,2]
[352320570,1739040667229,-532.57255791,0.00010958,2]
[352320571,1739040667240,-598.71,0.00010958,2]
[352320572,1739040667252,-500.0,0.00010958,2]
[352320573,1739040667262,-570.8,0.00010958,2]
[352320574,1739040667272,-863.44,0.00010958,2]
[352320575,1739040667282,-495.5905979,0.00010958,2]
[352320576,1739040667292,-500.0,0.00010958,2]
[352320577,1739040667302,-500.0,0.00010958,2]
[352320578,1739040667312,-500.0,0.00010958,2]
[352320579,1739040667321,-959.22,0.00010958,2]
[352320580,1739040667331,-500.0,0.00010958,2]
[352320581,1739040667340,-500.0,0.00010958,2]
[352320582,1739040667349,-500.0,0.00010958,2]
[352320583,1739040667358,-500.0,0.00010958,2]
[352320584,1739040667368,-509.81,0.00010958,2]
[352320585,1739040667377,-500.0,0.00010958,2]
[352320586,1739040667387,-824.88,0.00010958,2]
[352320587,1739040667396,-398.76001072,0.00010958,2]
[352320588,1739040667408,-101.23998928,0.00010958,2]
[352320589,1739040667418,-818.12,0.00010958,2]
[352320590,1739040667428,-500.0,0.00010958,2]
[352320591,1739040667437,-500.0,0.00010958,2]
[352320592,1739040667447,-500.0,0.00010958,2]
[352320593,1739040667456,-533.58,0.00010958,2]
[352320594,1739040667465,-500.0,0.00010958,2]
[352320595,1739040667475,-500.0,0.00010958,2]
[352320596,1739040667484,-500.0,0.00010958,2]
[352320597,1739040667494,-500.0,0.00010958,2]
[352320598,1739040667504,-500.0,0.00010958,2]
[352320599,1739040667514,-514.1,0.00010958,2]
[352320600,1739040667523,-500.0,0.00010958,2]
[352320601,1739040667532,-500.0,0.00010958,2]
[352320602,1739040667542,-525.36,0.00010958,2]
[352320603,1739040667552,-500.0,0.00010958,2]
[352320604,1739040667564,-500.0,0.00010958,2]
[352320605,1739040667574,-705.24,0.00010958,2]
[352320606,1739040667583,-500.0,0.00010958,2]
[352320607,1739040667595,-500.0,0.00010958,2]
[352320608,1739040667605,-693.46,0.00010958,2]
[352320609,1739040667615,-1380.81,0.00010958,2]
[352320610,1739040667625,-826.86,0.00010958,2]
[352320611,1739040667636,-500.0,0.00010958,2]
[352320612,1739040667647,-1217.96,0.00010958,2]
[352320613,1739040667657,-208.27001082,0.00010958,2]
[352320614,1739040667999,-349.87046341,0.0001082,2]
[352320615,1739040668010,-308.52858885,0.0001082,2]
[352320616,1739040668022,-599.10094774,0.0001082,2]
[352320617,1739040668032,-129.49010641,0.00010957,2]
[352320618,1739040668044,-1128.00989359,0.00010957,2]
[352320619,1739040668054,-741.78998918,0.00010958,2]
[352320620,1739040668063,-1018.16,0.00010958,2]
[352320621,1739040668074,-2568.55904845,0.00010958,2]
[352320622,1739040668086,-755.60676301,0.00010958,2]
[352320623,1739040668098,-1115.91418854,0.00010958,2]
[352320624,1739040668108,-500.0,0.00010958,2]
[352320625,1739040668118,-774.63643855,0.00010958,2]
[352320626,1739040668136,-132.80356145,0.00010958,2]
[352320627,1739040668147,-120.57135855,0.00010958,2]
[352320628,1739040668159,-263.258183,0.00010958,2]
[352320629,1739040668172,-166.67045845,0.00010958,2]
[352320630,1739040668182,-1206.48,0.00010958,2]
[352320631,1739040668192,-500.0,0.00010958,2]
[352320632,1739040668202,-500.0,0.00010958,2]
[352320633,1739040668213,-500.0,0.00010958,2]
[352320634,1739040668223,-1299.55,0.00010958,2]
[352320635,1739040668233,-509.54,0.00010958,2]
[352320636,1739040668242,-1082.73,0.00010958,2]
[352320637,1739040668252,-576.26959098,0.00010958,2]
[352320638,1739040668288,-449.87040902,0.00010958,2]
[352320639,1739040668298,-500.0,0.00010958,2]
[352320640,1739040668307,-1645.78,0.00010958,2]
[352320641,1739040668317,-500.0,0.00010958,2]
[352320642,1739040668327,-1105.4,0.00010958,2]
[352320643,1739040668337,-941.65,0.00010958,2]
[352320644,1739040668346,-1091.51,0.00010958,2]
[352320645,1739040668356,-500.0,0.00010958,2]
[352320646,1739040668366,-1509.86,0.00010958,2]
[352320647,1739040668376,-197.46217005,0.00010958,2]
[352320648,1739040668386,-503.89400392,0.00010958,2]
[352320649,1739040668398,-1277.35599608,0.00010958,2]
[352320650,1739040668407,-500.0,0.00010958,2]
[352320651,1739040668417,-500.0,0.00010958,2]
[352320652,1739040668427,-1219.25,0.00010958,2]
[352320653,1739040668437,-500.0,0.00010958,2]
[352320654,1739040668446,-1120.47,0.00010958,2]
[352320655,1739040668456,-487.4583883,0.00010958,2]
[352320656,1739040668468,-25.9116117,0.00010958,2]
[352320657,1739040668478,-500.0,0.00010958,2]
[352320658,1739040668491,-500.0,0.00010958,2]
[352320659,1739040668507,-1699.35,0.00010958,2]
[352320660,1739040668522,-274.7383878,0.00010958,2]
[352320661,1739040668537,-225.2616122,0.00010958,2]
[352320662,1739040668554,-1753.37,0.00010958,2]
[352320663,1739040668569,-500.0,0.00010958,2]
[352320664,1739040668596,-186.3683828,0.00010958,2]
[352320665,1739040668638,-379.4316172,0.00010958,2]
[352320666,1739040668662,-1179.89,0.00010958,2]
[352320667,1739040668694,-500.0,0.00010958,2]
[352320668,1739040668721,-500.0,0.00010958,2]
[352320669,1739040668747,-500.0,0.00010958,2]
[352320670,1739040668773,-500.0,0.00010958,2]
[352320671,1739040668799,-942.33,0.00010958,2]
[352320672,1739040668825,-500.0,0.00010958,2]
[352320673,1739040668860,-500.0,0.00010958,2]
[352320674,1739040668874,-500.0,0.00010959,2]
[352320675,1739040668888,-500.0,0.00010959,2]
[352320676,1739040668901,-200.0,0.00010959,2]
[352320677,1739040668914,-1300.0,0.0001096,2]
[352320678,1739040668932,-2500.0,0.0001096,2]
[352320679,1739040668946,-150.0,0.00010973,2]
[352320680,1739040668958,-850.37852855,0.00010973,2]
[352320681,1739040668971,-129.62147145,0.00010973,2]
[352320682,1739040668983,-152.0,0.00010976,4]
[352320683,1739040669001,-270.87232306,0.0001098,2]
[352320684,1739040669012,-578.62715809,0.00010989,2]
[352320685,1739040669026,-1421.37284191,0.00010989,2]
[352320686,1739040669039,-500.0,0.00010989,2]
[352320687,1739040669054,-513.41187259,0.00010989,2]
[352320705,1739041052710,500.0,0.0002,120]
[352320706,1739041372215,-7667.6574439,8.767e-05,7]
[352321043,1739041679448,500.0,0.0002,120]
[352321044,1739041679681,500.0,0.0002,120]
[352321045,1739041681702,500.0,0.0002,120]
[352321063,1739041832060,-874.39,8.219e-05,2]
[352321064,1739041832070,-2300.0,8.22e-05,2]
[352321065,1739041832080,-300.0,8.766e-05,2]
[352321066,1739041832089,-5476.9607032,8.767e-05,7]
[352321067,1739041832101,-256.28236126,8.767e-05,7]
[352321068,1739041832112,-32795.58530264,8.767e-05,7]
[352321069,1739041832122,-5309.77859267,8.767e-05,7]
[352321070,1739041832131,-1000.0,8.857e-05,2]
[352321071,1739041832140,-743.4171,8.973e-05,2]
[352321072,1739041832149,-2936.0424,8.973e-05,2]
[352321073,1739041832159,-15018.36,9.156e-05,2]